fUST/lending_fUST_20250814
["ID","MTS","AMOUNT","RATE_DAILY","PERIOD"]
[379179923,1755179434713,-198.09871778,0.00016438,2]
[379179925,1755179434723,-460.0,0.00016438,2]
[379179927,1755179434732,-460.0,0.00016438,2]
[379179929,1755179434742,-460.0,0.00016438,2]
[379179931,1755179434752,-460.0,0.00016438,2]
[379179933,1755179434762,-460.0,0.00016438,2]
[379179935,1755179434771,-323.55845556,0.00016438,2]
[379179937,1755179434782,-460.0,0.00016438,2]
[379179939,1755179434791,-460.0,0.00016438,2]
[379179941,1755179434802,-460.0,0.00016438,2]
[379179943,1755179434811,-460.0,0.00016438,2]
[379179945,1755179434821,-460.0,0.00016438,2]
[379179947,1755179434831,-460.0,0.00016438,2]
[379179949,1755179434840,-460.0,0.00016438,2]
[379179950,1755179434849,-460.0,0.00016438,2]
[379179952,1755179434859,-460.0,0.00016438,2]
[379179954,1755179434868,-460.0,0.00016438,2]
[379179955,1755179434878,-460.38725175,0.00016438,2]
[379179956,1755179434888,-460.0,0.00016438,2]
[379179957,1755179434898,-468.19453096,0.00016438,2]
[379179958,1755179434908,-460.0,0.00016438,2]
[379179959,1755179434917,-460.0,0.00016438,2]
[379179960,1755179434927,-460.0,0.00016438,2]
[379179961,1755179434936,-461.99479052,0.00016438,2]
[379179962,1755179434946,-460.0,0.00016438,2]
[379179963,1755179434958,-460.0,0.00016438,2]
[379179964,1755179434967,-460.0,0.00016438,2]
[379179965,1755179434977,-460.0,0.00016438,2]
[379179966,1755179434986,-460.0,0.00016438,2]
[379179967,1755179434997,-461.88001973,0.00016438,2]
[379179968,1755179435007,-460.0,0.00016438,2]
[379179969,1755179435016,-574.21,0.00016438,2]
[379179970,1755179435026,-460.0,0.00016438,2]
[379179971,1755179435035,-460.0,0.00016438,2]
[379179972,1755179435045,-467.50718232,0.00016438,2]
[379179973,1755179435054,-460.0,0.00016438,2]
[379179974,1755179435064,-462.80710685,0.00016438,2]
[379179975,1755179435073,-460.0,0.00016438,2]
[379179976,1755179435083,-460.0,0.00016438,2]
[379179977,1755179435092,-661.51,0.00016438,2]
[379179978,1755179435102,-460.0,0.00016438,2]
[379179979,1755179435111,-460.0,0.00016438,2]
[379179980,1755179435121,-488.17488614,0.00016438,2]
[379179981,1755179435131,-460.0,0.00016438,2]
[379179982,1755179435141,-460.0,0.00016438,2]
[379179983,1755179435150,-460.0,0.00016438,2]
[379179984,1755179435160,-460.69610991,0.00016438,2]
[379179985,1755179435169,-460.0,0.00016438,2]
[379179986,1755179435179,-460.0,0.00016438,2]
[379179987,1755179435189,-460.0,0.00016438,2]
[379179988,1755179435199,-460.0,0.00016438,2]
[379179989,1755179435210,-460.0,0.00016438,2]
[379179990,1755179435220,-460.0,0.00016438,2]
[379179991,1755179435229,-460.0,0.00016438,2]
[379179992,1755179435238,-460.0,0.00016438,2]
[379179993,1755179435247,-460.0,0.00016438,2]
[379179994,1755179435257,-471.61,0.00016438,2]
[379179995,1755179435267,-460.0,0.00016438,2]
[379179996,1755179435281,-460.0,0.00016438,2]
[379179997,1755179435290,-460.0,0.00016438,2]
[379179998,1755179435299,-460.0,0.00016438,2]
[379179999,1755179435309,-461.5908199,0.00016438,2]
[379180000,1755179435319,-460.0,0.00016438,2]
[379180001,1755179435328,-460.0,0.00016438,2]
[379180002,1755179435338,-460.0,0.00016438,2]
[379180003,1755179435347,-460.0,0.00016438,2]
[379180004,1755179435360,-460.0,0.00016438,2]
[379180005,1755179435371,-460.0,0.00016438,2]
[379180006,1755179435380,-460.0,0.00016438,2]
[379180007,1755179435390,-460.0,0.00016438,2]
[379180008,1755179435400,-460.0,0.00016438,2]
[379180009,1755179435410,-460.0,0.00016438,2]
[379180010,1755179435420,-460.0,0.00016438,2]
[379180011,1755179435431,-460.0,0.00016438,2]
[379180012,1755179435442,-460.0,0.00016438,2]
[379180013,1755179435457,-460.0,0.00016438,2]
[379180014,1755179435466,-460.0,0.00016438,2]
[379180015,1755179435476,-460.0,0.00016438,2]
[379180016,1755179435485,-460.0,0.00016438,2]
[379180017,1755179435495,-610.72,0.00016438,2]
[379180018,1755179435504,-460.0,0.00016438,2]
[379180019,1755179435515,-460.0,0.00016438,2]
[379180020,1755179435524,-460.0,0.00016438,2]
[379180021,1755179435534,-494.71,0.00016438,2]
[379180022,1755179435544,-462.00351697,0.00016438,2]
[379180023,1755179435555,-460.0,0.00016438,2]
[379180024,1755179435565,-288.55939699,0.00016438,2]
[379180025,1755179435574,-645.09,0.00016438,2]
[379180026,1755179435584,-460.0,0.00016438,2]
[379180027,1755179435594,-461.29878547,0.00016438,2]
[379180028,1755179435603,-460.0,0.00016438,2]
[379180029,1755179435613,-460.0,0.00016438,2]
[379180030,1755179435622,-460.0,0.00016438,2]
[379180031,1755179435631,-460.0,0.00016438,2]
[379180032,1755179435641,-460.0,0.00016438,2]
[379180033,1755179435650,-460.0,0.00016438,2]
[379180034,1755179435659,-460.0,0.00016438,2]
[379180035,1755179435669,-460.0,0.00016438,2]
[379180036,1755179435679,-522.64,0.00016438,2]
[379180037,1755179435688,-460.0,0.00016438,2]
[379180038,1755179435697,-460.0,0.00016438,2]
[379180039,1755179435708,-466.19376159,0.00016438,2]
[379180040,1755179435718,-589.17,0.00016438,2]
[379180041,1755179435728,-460.0,0.00016438,2]
[379180042,1755179435737,-460.0,0.00016438,2]
[379180043,1755179435746,-460.0,0.00016438,2]
[379180044,1755179435755,-460.0,0.00016438,2]
[379180045,1755179435765,-460.9486442,0.00016438,2]
[379180046,1755179435774,-460.0,0.00016438,2]
[379180047,1755179435784,-460.0,0.00016438,2]
[379180048,1755179435793,-471.60113941,0.00016438,2]
[379180049,1755179435802,-460.0,0.00016438,2]
[379180050,1755179435812,-460.0,0.00016438,2]
[379180051,1755179435823,-460.99574746,0.00016438,2]
[379180052,1755179435832,-500.0,0.00016438,2]
[379180053,1755179435842,-500.0,0.00016438,2]
[379180054,1755179435852,-460.0,0.00016438,2]
[379180055,1755179435861,-500.0,0.00016438,2]
[379180056,1755179435871,-500.0,0.00016438,2]
[379180057,1755179435880,-500.0,0.00016438,2]
[379180058,1755179435890,-500.0,0.00016438,2]
[379180059,1755179435900,-500.0,0.00016438,2]
[379180060,1755179435910,-616.37177822,0.00016438,2]
[379180061,1755179435920,-460.0,0.00016438,2]
[379180062,1755179435929,-1000.0,0.00016438,2]
[379180063,1755179435939,-460.0,0.00016438,2]
[379180064,1755179435948,-460.0,0.00016438,2]
[379180065,1755179435959,-606.71,0.00016438,2]
[379180066,1755179435969,-460.0,0.00016438,2]
[379180067,1755179435978,-460.0,0.00016438,2]
[379180068,1755179435988,-460.0,0.00016438,2]
[379180069,1755179435997,-460.0,0.00016438,2]
[379180070,1755179436008,-460.0,0.00016438,2]
[379180071,1755179436017,-460.0,0.00016438,2]
[379180072,1755179436027,-460.0,0.00016438,2]
[379180073,1755179436036,-363.07309557,0.00016438,2]
[379180074,1755179436045,-461.19761266,0.00016438,2]
[379180075,1755179436054,-463.49333019,0.00016438,2]
[379180076,1755179436064,-460.0,0.00016438,2]
[379180077,1755179436074,-460.0,0.00016438,2]
[379180078,1755179436083,-460.0,0.00016438,2]
[379180079,1755179436092,-460.0,0.00016438,2]
[379180080,1755179436101,-676.28,0.00016438,2]
[379180081,1755179436111,-460.0,0.00016438,2]
[379180082,1755179436120,-460.0,0.00016438,2]
[379180083,1755179436130,-460.0,0.00016438,2]
[379180084,1755179436139,-460.0,0.00016438,2]
[379180085,1755179436148,-460.0,0.00016438,2]
[379180086,1755179436157,-460.0,0.00016438,2]
[379180087,1755179436167,-456.89701669,0.00016438,2]
[379180088,1755179436176,-308.91680758,0.00016438,2]
[379180089,1755179436185,-460.0,0.00016438,2]
[379180090,1755179436196,-460.0,0.00016438,2]
[379180091,1755179436207,-460.0,0.00016438,2]
[379180092,1755179436216,-497.89,0.00016438,2]
[379180093,1755179436225,-460.0,0.00016438,2]
[379180094,1755179436235,-460.0,0.00016438,2]
[379180095,1755179436245,-316.35285608,0.00016438,2]
[379180096,1755179436255,-464.71121682,0.00016438,2]
[379180097,1755179436264,-463.68501559,0.00016438,2]
[379180098,1755179436276,-460.0,0.00016438,2]
[379180099,1755179436287,-461.13060928,0.00016438,2]
[379180100,1755179436296,-1396.54,0.00016438,2]
[379180101,1755179436306,-460.0,0.00016438,2]
[379180102,1755179436316,-460.0,0.00016438,2]
[379180103,1755179436326,-460.0,0.00016438,2]
[379180104,1755179436335,-460.0,0.00016438,2]
[379180105,1755179436345,-460.0,0.00016438,2]
[379180106,1755179436355,-324.50461383,0.00016438,2]
[379180107,1755179436369,-460.0,0.00016438,2]
[379180108,1755179436379,-460.0,0.00016438,2]
[379180109,1755179436391,-460.0,0.00016438,2]
[379180110,1755179436400,-1107.5,0.00016438,2]
[379180111,1755179436410,-533.85757812,0.00016438,2]
[379180112,1755179436420,-581.94,0.00016438,2]
[379180113,1755179436429,-460.0,0.00016438,2]
[379180114,1755179436439,-460.0,0.00016438,2]
[379180115,1755179436449,-462.79052649,0.00016438,2]
[379180116,1755179436462,-460.0,0.00016438,2]
[379180117,1755179436472,-460.0,0.00016438,2]
[379180118,1755179436482,-462.49397537,0.00016438,2]
[379180119,1755179436491,-460.0,0.00016438,2]
[379180120,1755179436500,-531.71,0.00016438,2]
[379180121,1755179436510,-460.0,0.00016438,2]
[379180122,1755179436519,-460.0,0.00016438,2]
[379180123,1755179436528,-462.00738125,0.00016438,2]
[379180124,1755179436538,-460.0,0.00016438,2]
[379180125,1755179436547,-462.82856911,0.00016438,2]
[379180126,1755179436556,-565.72054893,0.00016438,2]
[379180127,1755179436566,-460.0,0.00016438,2]
[379180128,1755179436575,-460.0,0.00016438,2]
[379180129,1755179436585,-460.0,0.00016438,2]
[379180130,1755179436594,-460.0,0.00016438,2]
[379180131,1755179436604,-461.06292599,0.00016438,2]
[379180132,1755179436613,-460.0,0.00016438,2]
[379180133,1755179436622,-460.0,0.00016438,2]
[379180134,1755179436632,-712.2,0.00016438,2]
[379180135,1755179436641,-514.73876857,0.00016438,2]
[379180136,1755179436651,-460.0,0.00016438,2]
[379180137,1755179436660,-460.0,0.00016438,2]
[379180138,1755179436670,-460.0,0.00016438,2]
[379180139,1755179436680,-1014.23,0.00016438,2]
[379180140,1755179436689,-505.33,0.00016438,2]
[379180141,1755179436699,-460.0,0.00016438,2]
[379180142,1755179436711,-460.0,0.00016438,2]
[379180143,1755179436721,-460.0,0.00016438,2]
[379180144,1755179436730,-460.0,0.00016438,2]
[379180145,1755179436740,-527.31591432,0.00016438,2]
[379180146,1755179436750,-460.0,0.00016438,2]
[379180147,1755179436760,-460.0,0.00016438,2]
[379180148,1755179436770,-460.0,0.00016438,2]
[379180149,1755179436780,-461.01615688,0.00016438,2]
[379180150,1755179436789,-500.0,0.00016438,2]
[379180151,1755179436798,-500.0,0.00016438,2]
[379180152,1755179436807,-460.0,0.00016438,2]
[379180153,1755179436817,-460.0,0.00016438,2]
[379180154,1755179436826,-460.0,0.00016438,2]
[379180155,1755179436836,-460.0,0.00016438,2]
[379180156,1755179436846,-460.0,0.00016438,2]
[379180157,1755179436857,-552.87,0.00016438,2]
[379180158,1755179436867,-460.0,0.00016438,2]
[379180159,1755179436876,-460.0,0.00016438,2]
[379180160,1755179436886,-460.0,0.00016438,2]
[379180161,1755179436896,-460.0,0.00016438,2]
[379180162,1755179436905,-460.0,0.00016438,2]
[379180163,1755179436915,-460.0,0.00016438,2]
[379180164,1755179436925,-460.0,0.00016438,2]
[379180165,1755179436934,-460.0,0.00016438,2]
[379180166,1755179436943,-460.0,0.00016438,2]
[379180167,1755179436952,-788.61,0.00016438,2]
[379180168,1755179436964,-500.0,0.00016438,2]
[379180169,1755179436973,-460.0,0.00016438,2]
[379180170,1755179436983,-460.0,0.00016438,2]
[379180171,1755179436992,-1016.69,0.00016438,2]
[379180172,1755179437002,-462.23358971,0.00016438,2]
[379180173,1755179437012,-460.0,0.00016438,2]
[379180174,1755179437021,-461.72326758,0.00016438,2]
[379180175,1755179437031,-460.0,0.00016438,2]
[379180176,1755179437041,-460.7169586,0.00016438,2]
[379180177,1755179437050,-460.0,0.00016438,2]
[379180178,1755179437060,-731.02,0.00016438,2]
[379180179,1755179437070,-460.0,0.00016438,2]
[379180180,1755179437080,-422.93447865,0.00016438,2]
[379180181,1755179437090,-460.0,0.00016438,2]
[379180182,1755179437099,-460.0,0.00016438,2]
[379180183,1755179437109,-460.0,0.00016438,2]
[379180184,1755179437119,-460.0,0.00016438,2]
[379180185,1755179437128,-460.0,0.00016438,2]
[379180186,1755179437138,-460.0,0.00016438,2]
[379180187,1755179437147,-460.0,0.00016438,2]
[379180188,1755179437156,-460.0,0.00016438,2]
[379180189,1755179437165,-460.0,0.00016438,2]
[379180190,1755179437175,-604.84,0.00016438,2]
[379180191,1755179437184,-460.0,0.00016438,2]
[379180192,1755179437194,-460.0,0.00016438,2]
[379180193,1755179437203,-514.64,0.00016438,2]
[379180194,1755179437215,-460.0,0.00016438,2]
[379180195,1755179437224,-460.0,0.00016438,2]
[379180196,1755179437234,-460.0,0.00016438,2]
[379180197,1755179437243,-600.13,0.00016438,2]
[379180198,1755179437252,-460.0,0.00016438,2]
[379180199,1755179437262,-460.0,0.00016438,2]
[379180200,1755179437271,-266.15431464,0.00016438,2]
[379180201,1755179437283,-460.0,0.00016438,2]
[379180202,1755179437292,-460.0,0.00016438,2]
[379180203,1755179437302,-460.0,0.00016438,2]
[379180204,1755179437311,-460.0,0.00016438,2]
[379180205,1755179437321,-944.47,0.00016438,2]
[379180206,1755179437330,-460.0,0.00016438,2]
[379180207,1755179437340,-460.0,0.00016438,2]
[379180208,1755179437349,-460.0,0.00016438,2]
[379180209,1755179437359,-460.0,0.00016438,2]
[379180210,1755179437368,-461.86932462,0.00016438,2]
[379180211,1755179437378,-716.62,0.00016438,2]
[379180212,1755179437387,-815.41,0.00016438,2]
[379180213,1755179437396,-667.61,0.00016438,2]
[379180214,1755179437406,-460.0,0.00016438,2]
[379180215,1755179437415,-460.0,0.00016438,2]
[379180216,1755179437424,-460.0,0.00016438,2]
[379180217,1755179437434,-460.0,0.00016438,2]
[379180218,1755179437443,-460.0,0.00016438,2]
[379180219,1755179437452,-168.6200183,0.00016438,2]
[379180220,1755179437466,-460.0,0.00016438,2]
[379180221,1755179437475,-460.0,0.00016438,2]
[379180222,1755179437485,-460.0,0.00016438,2]
[379180223,1755179437494,-460.0,0.00016438,2]
[379180224,1755179437504,-460.0,0.00016438,2]
[379180225,1755179437514,-460.0,0.00016438,2]
[379180226,1755179437525,-1296.54,0.00016438,2]
[379180227,1755179437534,-460.0,0.00016438,2]
[379180228,1755179437544,-460.0,0.00016438,2]
[379180229,1755179437554,-538.17,0.00016438,2]
[379180230,1755179437566,-2162.83,0.00016438,2]
[379180231,1755179437576,-670.34,0.00016438,2]
[379180232,1755179437586,-460.0,0.00016438,2]
[379180233,1755179437595,-460.0,0.00016438,2]
[379180234,1755179437605,-363.36591585,0.00016438,2]
[379180235,1755179437615,-460.0,0.00016438,2]
[379180236,1755179437625,-460.0,0.00016438,2]
[379180237,1755179437635,-460.0,0.00016438,2]
[379180238,1755179437645,-460.0,0.00016438,2]
[379180239,1755179437655,-460.0,0.00016438,2]
[379180240,1755179437664,-460.0,0.00016438,2]
[379180241,1755179437674,-460.0,0.00016438,2]
[379180242,1755179437683,-460.0,0.00016438,2]
[379180243,1755179437693,-460.0,0.00016438,2]
[379180244,1755179437703,-578.44,0.00016438,2]
[379180245,1755179437718,-462.2223395,0.00016438,2]
[379180246,1755179437728,-460.0,0.00016438,2]
[379180247,1755179437738,-460.0,0.00016438,2]
[379180248,1755179437747,-460.0,0.00016438,2]
[379180249,1755179437758,-460.0,0.00016438,2]
[379180250,1755179437767,-460.0,0.00016438,2]
[379180251,1755179437777,-460.0,0.00016438,2]
[379180252,1755179437787,-460.0,0.00016438,2]
[379180253,1755179437796,-460.0,0.00016438,2]
[379180254,1755179437806,-543.42,0.00016438,2]
[379180255,1755179437816,-460.0,0.00016438,2]
[379180256,1755179437825,-460.0,0.00016438,2]
[379180257,1755179437835,-1644.5,0.00016438,2]
[379180258,1755179437844,-460.0,0.00016438,2]
[379180259,1755179437854,-460.0,0.00016438,2]
[379180260,1755179437865,-460.0,0.00016438,2]
[379180261,1755179437874,-462.48354589,0.00016438,2]
[379180262,1755179437883,-460.0,0.00016438,2]
[379180263,1755179437893,-460.0,0.00016438,2]
[379180264,1755179437903,-462.29136156,0.00016438,2]
[379180265,1755179437912,-3821.76,0.00016438,2]
[379180266,1755179437922,-460.0,0.00016438,2]
[379180267,1755179437931,-357.20006894,0.00016438,2]
[379180268,1755179437941,-1092.21,0.00016438,2]
[379180269,1755179437950,-460.0,0.00016438,2]
[379180270,1755179437962,-460.0,0.00016438,2]
[379180271,1755179437971,-460.0,0.00016438,2]
[379180272,1755179437981,-460.0,0.00016438,2]
[379180273,1755179437991,-1289.89,0.00016438,2]
[379180274,1755179438001,-3708.02,0.00016438,2]
[379180275,1755179438010,-460.0,0.00016438,2]
[379180276,1755179438021,-460.0,0.00016438,2]
[379180277,1755179438030,-557.33,0.00016438,2]
[379180278,1755179438040,-461.02632671,0.00016438,2]
[379180279,1755179438050,-461.68726973,0.00016438,2]
[379180280,1755179438060,-460.53692922,0.00016438,2]
[379180281,1755179438070,-357.0598536,0.00016438,2]
[379180282,1755179438079,-1733.53,0.00016438,2]
[379180283,1755179438089,-711.56,0.00016438,2]
[379180284,1755179438099,-460.0,0.00016438,2]
[379180285,1755179438108,-460.0,0.00016438,2]
[379180286,1755179438118,-616.97,0.00016438,2]
[379180287,1755179438127,-461.489885,0.00016438,2]
[379180288,1755179438138,-455.00000021,0.00016438,2]
[379180289,1755179438148,-703.37,0.00016438,2]
[379180290,1755179438157,-460.0,0.00016438,2]
[379180295,1755179438317,-460.0,0.00016438,2]
[379180297,1755179438327,-461.17347108,0.00016438,2]
[379180298,1755179438337,-460.0,0.00016438,2]
[379180299,1755179438347,-460.0,0.00016438,2]
[379180300,1755179438356,-464.59360669,0.00016438,2]
[379180301,1755179438366,-161.98780148,0.00016438,2]
[379180303,1755179438376,-460.0,0.00016438,2]
[379180305,1755179438386,-460.0,0.00016438,2]
[379180307,1755179438396,-460.0,0.00016438,2]
[379180309,1755179438405,-405.75186331,0.00016438,2]
[379180311,1755179438415,-1036.4,0.00016438,2]
[379180313,1755179438425,-760.15,0.00016438,2]
[379180315,1755179438435,-777.29,0.00016438,2]
[379180317,1755179438444,-337.63814961,0.00016438,2]
[379180319,1755179438454,-460.0,0.00016438,2]
[379180320,1755179438468,-460.0,0.00016438,2]
[379180323,1755179438478,-465.80773449,0.00016438,2]
[379180324,1755179438488,-460.0,0.00016438,2]
[379180326,1755179438499,-460.0,0.00016438,2]
[379180328,1755179438509,-460.0,0.00016438,2]
[379180330,1755179438519,-1364.81,0.00016438,2]
[379180332,1755179438528,-460.0,0.00016438,2]
[379180334,1755179438538,-460.0,0.00016438,2]
[379180336,1755179438547,-460.0,0.00016438,2]
[379180338,1755179438556,-460.0,0.00016438,2]
[379180340,1755179438566,-2417.62,0.00016438,2]
[379180342,1755179438576,-462.24951918,0.00016438,2]
[379180344,1755179438585,-461.62246511,0.00016438,2]
[379180346,1755179438595,-1679.39,0.00016438,2]
[379180348,1755179438604,-460.0,0.00016438,2]
[379180350,1755179438613,-277.78336998,0.00016438,2]
[379180352,1755179438623,-815.53,0.00016438,2]
[379180354,1755179438632,-690.63,0.00016438,2]
[379180356,1755179438641,-460.0,0.00016438,2]
[379180358,1755179438651,-466.2,0.00016438,2]
[379180360,1755179438660,-460.0,0.00016438,2]
[379180362,1755179438670,-460.0,0.00016438,2]
[379180364,1755179438681,-1216.08,0.00016438,2]
[379180366,1755179438691,-460.0,0.00016438,2]
[379180368,1755179438700,-460.0,0.00016438,2]
[379180370,1755179438712,-592.34,0.00016438,2]
[379180372,1755179438726,-460.0,0.00016438,2]
[379180374,1755179438735,-314.13459046,0.00016438,2]
[379180376,1755179438745,-669.09,0.00016438,2]
[379180378,1755179438755,-460.0,0.00016438,2]
[379180380,1755179438765,-460.0,0.00016438,2]
[379180383,1755179438774,-6832.2,0.00016438,2]
[379180385,1755179438784,-363.50603091,0.00016438,2]
[379180387,1755179438794,-460.0,0.00016438,2]
[379180389,1755179438804,-460.0,0.00016438,2]
[379180391,1755179438813,-460.0,0.00016438,2]
[379180393,1755179438822,-460.0,0.00016438,2]
[379180395,1755179438832,-460.0,0.00016438,2]
[379180397,1755179438841,-460.0,0.00016438,2]
[379180399,1755179438851,-2094.75,0.00016438,2]
[379180400,1755179438860,-460.0,0.00016438,2]
[379180402,1755179438869,-399.44554469,0.00016438,2]
[379180404,1755179438879,-460.0,0.00016438,2]
[379180406,1755179438889,-2468.85,0.00016438,2]
[379180409,1755179438899,-460.0,0.00016438,2]
[379180410,1755179438908,-508.59770756,0.00016438,2]
[379180413,1755179438918,-460.0,0.00016438,2]
[379180415,1755179438927,-460.0,0.00016438,2]
[379180416,1755179438937,-622.8,0.00016438,2]
[379180418,1755179438946,-460.0,0.00016438,2]
[379180421,1755179438962,-461.38762913,0.00016438,2]
[379180423,1755179438971,-460.0,0.00016438,2]
[379180425,1755179438982,-460.0,0.00016438,2]
[379180426,1755179438991,-460.0,0.00016438,2]
[379180429,1755179439001,-460.0,0.00016438,2]
[379180431,1755179439011,-1322.93,0.00016438,2]
[379180433,1755179439020,-460.0,0.00016438,2]
[379180434,1755179439030,-163.24289654,0.00016438,2]
[379180436,1755179439039,-460.0,0.00016438,2]
[379180438,1755179439049,-460.0,0.00016438,2]
[379180440,1755179439059,-460.0,0.00016438,2]
[379180443,1755179439070,-460.0,0.00016438,2]
[379180444,1755179439080,-1000.0,0.00016438,2]
[379180447,1755179439090,-1000.0,0.00016438,2]
[379180449,1755179439100,-460.0,0.00016438,2]
[379180450,1755179439109,-1000.0,0.00016438,2]
[379180452,1755179439119,-1000.0,0.00016438,2]
[379180454,1755179439129,-1000.0,0.00016438,2]
[379180456,1755179439140,-972.08,0.00016438,2]
[379180459,1755179439150,-500.0,0.00016438,2]
[379180460,1755179439159,-1000.0,0.00016438,2]
[379180462,1755179439169,-500.0,0.00016438,2]
[379180464,1755179439179,-1000.0,0.00016438,2]
[379180466,1755179439189,-500.0,0.00016438,2]
[379180468,1755179439199,-460.0,0.00016438,2]
[379180470,1755179439213,-500.0,0.00016438,2]
[379180472,1755179439223,-500.0,0.00016438,2]
[379180474,1755179439232,-460.0,0.00016438,2]
[379180476,1755179439243,-500.0,0.00016438,2]
[379180478,1755179439252,-500.0,0.00016438,2]
[379180480,1755179439261,-500.0,0.00016438,2]
[379180482,1755179439271,-500.0,0.00016438,2]
[379180484,1755179439282,-500.0,0.00016438,2]
[379180486,1755179439292,-500.0,0.00016438,2]
[379180488,1755179439303,-500.0,0.00016438,2]
[379180490,1755179439312,-500.0,0.00016438,2]
[379180492,1755179439322,-500.0,0.00016438,2]
[379180494,1755179439332,-500.0,0.00016438,2]
[379180496,1755179439342,-500.0,0.00016438,2]
[379180498,1755179439353,-460.0,0.00016438,2]
[379180500,1755179439363,-502.78690373,0.00016438,2]
[379180502,1755179439372,-10816.98,0.00016438,2]
[379180503,1755179439383,-460.0,0.00016438,2]
[379180506,1755179439395,-460.0,0.00016438,2]
[379180507,1755179439406,-460.0,0.00016438,2]
[379180509,1755179439416,-6185.43,0.00016438,2]
[379180511,1755179439426,-460.72166703,0.00016438,2]
[379180513,1755179439435,-460.0,0.00016438,2]
[379180515,1755179439445,-460.0,0.00016438,2]
[379180517,1755179439454,-460.0,0.00016438,2]
[379180519,1755179439469,-460.0,0.00016438,2]
[379180521,1755179439479,-292.71022631,0.00016438,2]
[379180523,1755179439489,-460.0,0.00016438,2]
[379180525,1755179439499,-2928.93,0.00016438,2]
[379180527,1755179439510,-460.0,0.00016438,2]
[379180529,1755179439522,-460.0,0.00016438,2]
[379180531,1755179439538,-460.0,0.00016438,2]
[379180533,1755179439548,-460.0,0.00016438,2]
[379180535,1755179439558,-460.0,0.00016438,2]
[379180537,1755179439568,-3749.49,0.00016438,2]
[379180539,1755179439578,-766.24,0.00016438,2]
[379180541,1755179439587,-1261.39,0.00016438,2]
[379180543,1755179439597,-2505.67,0.00016438,2]
[379180545,1755179439607,-469.88,0.00016438,2]
[379180548,1755179439623,-460.0,0.00016438,2]
[379180549,1755179439633,-460.0,0.00016438,2]
[379180551,1755179439643,-460.0,0.00016438,2]
[379180553,1755179439653,-460.0,0.00016438,2]
[379180556,1755179439663,-460.0,0.00016438,2]
[379180557,1755179439672,-15.93298233,0.00016438,2]
[379180607,1755179440171,-500.0,0.00015892,2]
[379180609,1755179440185,-239.2685671,0.00015892,2]
[379180656,1755179441007,-260.7314329,0.00015892,2]
[379180658,1755179441018,-500.0,0.00015892,2]
[379180660,1755179441030,-500.0,0.00015892,2]
[379180662,1755179441042,-435.71164123,0.00015892,2]
[379180664,1755179441055,-500.0,0.00015892,2]
[379180667,1755179441067,-494.83451316,0.00015892,2]
[379180669,1755179441078,-496.46668565,0.00015892,2]
[379180671,1755179441094,-500.0,0.00015892,2]
[379180674,1755179441104,-500.0,0.00015892,2]
[379180676,1755179441114,-409.20766701,0.00015892,2]